bitfinex/quotes_BTCUSD_20251219
["timestamp","ask_amount","ask_price","bid_price","bid_amount"]
[1766123984272,0.06530187,87274.0,87269.0,0.00010948]
[1766123984487,0.06530187,87274.0,87259.0,0.55525]
[1766123985026,0.45949,87273.0,87258.0,0.46631]
[1766123985226,0.52059,87272.0,87258.0,0.46631]
[1766123985433,0.98008,87272.0,87258.0,0.46631]
[1766123987525,0.45949,87271.0,87253.0,0.55525]
[1766123987789,0.52059,87270.0,87253.0,0.55525]
[1766123987994,0.52059,87269.0,87253.0,0.55525]
[1766123988183,0.00576,87268.0,87253.0,0.55525]
[1766123988398,0.00576,87268.0,87253.0,0.56671092]
[1766123988753,0.00576,87268.0,87253.0,0.55525]
[1766123988950,0.00576,87268.0,87254.0,0.46631]
[1766123989150,0.00576,87268.0,87256.0,0.46631]
[1766123992074,0.05954187,87274.0,87260.0,0.55525]
[1766123992262,0.04592,87272.0,87262.0,0.46631]
[1766123994688,0.04592,87272.0,87260.0,0.67728948]
[1766123994935,0.52059,87270.0,87260.0,0.67728948]
[1766123996278,0.45949,87271.0,87260.0,0.67728948]
[1766123997415,0.45949,87271.0,87260.0,0.61572021]
[1766123997810,0.45949,87271.0,87260.0,0.60572021]
[1766123999430,0.04592,87272.0,87260.0,1.07203021]
[1766123999846,0.04592,87272.0,87256.0,0.55525]
[1766123999847,0.22917947,87268.0,87242.0,0.01146236]
[1766124000055,0.53780908,87267.0,87250.0,0.61572021]
[1766124000253,0.01721908,87267.0,87251.0,1.02156]
[1766124000509,0.05954187,87258.0,87240.0,0.61572021]
[1766124000722,0.00576,87257.0,87242.0,0.46631]
[1766124000858,0.00576,87257.0,87249.0,0.61572021]
[1766124002036,0.00576,87257.0,87241.0,0.5667125]
[1766124002037,0.00576,87257.0,87244.0,0.46631]
[1766124002522,0.00576,87257.0,87240.0,0.61582961]
[1766124002523,0.01146131,87250.0,87240.0,0.0001094]
[1766124002693,0.52635,87249.0,87240.0,0.0001094]
[1766124003264,0.00576,87249.0,87240.0,0.0001094]
[1766124003670,0.00576,87249.0,87241.0,0.49529]
[1766124003921,0.004661,87248.0,87243.0,0.52273]
[1766124004065,0.00576,87247.0,87243.0,0.51121]
[1766124004263,0.04592,87255.0,87243.0,0.51121]
[1766124004264,0.00576,87246.0,87243.0,0.51121]
[1766124005917,0.00576,87246.0,87244.0,0.46053]
[1766124006108,0.00576,87246.0,87244.0,0.57249]
[1766124006311,0.001099,87244.0,87243.0,0.46053]
[1766124006672,0.001099,87244.0,87240.0,0.0001094]
[1766124006910,0.00576,87246.0,87240.0,1.0331294]
[1766124007110,0.00576,87246.0,87241.0,0.46053]
[1766124010080,0.00576,87246.0,87240.0,0.0001094]
[1766124013848,0.00576,87246.0,87240.0,4e-07]
[1766124014771,0.58173,87241.0,87240.0,4e-07]
[1766124014966,1.04387,87241.0,87240.0,4e-07]
[1766124016925,1.04387,87241.0,87214.0,0.01146604]
[1766124016926,0.22927705,87231.0,87216.0,0.46053]
[1766124017132,0.22927705,87231.0,87211.0,0.57249]
[1766124017133,0.58173,87225.0,87211.0,0.57249]
[1766124017331,0.00576,87224.0,87211.0,0.57249]
[1766124017763,0.00576,87224.0,87212.0,0.46053]
[1766124019221,0.005651,87224.0,87214.0,0.46053]
[1766124026256,0.005651,87224.0,87214.0,1.03302]
[1766124027237,0.005651,87224.0,87214.0,0.46053]
[1766124029360,1.06098573,87224.0,87209.0,0.57249]
[1766124029567,1.049521,87224.0,87211.0,0.46053]
[1766124030557,1.06098573,87224.0,87211.0,0.46053]
[1766124030765,1.049521,87224.0,87211.0,0.46053]
[1766124034729,0.58173,87223.0,87211.0,0.46053]
[1766124035330,0.467791,87224.0,87206.0,1.03302]
[1766124035331,0.46214,87222.0,87206.0,1.03302]
[1766124035664,1.04387,87222.0,87210.0,0.67804937]
[1766124035909,0.005651,87224.0,87207.0,0.46053]
[1766124036076,0.005651,87224.0,87202.0,0.48922]
[1766124036077,0.01146591,87215.0,87202.0,0.48922]
[1766124036284,0.00576,87214.0,87202.0,0.48922]
[1766124036645,0.00576,87214.0,87203.0,0.48922]
[1766124037797,0.22932623,87213.0,87203.0,0.48922]
[1766124038000,0.22932623,87213.0,87198.0,0.59204]
[1766124038001,0.01146683,87208.0,87198.0,0.59204]
[1766124038203,0.00576,87208.0,87196.0,0.48922]
[1766124038402,1.04076,87206.0,87196.0,0.48922]
[1766124039232,0.57059,87205.0,87191.0,0.00576]
[1766124039585,1.04076,87205.0,87191.0,0.00576]
[1766124040195,0.47017,87205.0,87191.0,0.50644907]
[1766124040435,0.00576,87208.0,87195.0,0.48922]
[1766124040642,0.58781683,87208.0,87195.0,0.48922]
[1766124040862,0.57059,87206.0,87195.0,0.48922]
[1766124041061,1.04076,87206.0,87195.0,0.48922]
[1766124041262,0.0114671,87206.0,87190.0,0.67804937]
[1766124041475,0.01146696,87207.0,87180.0,0.67804937]
[1766124041476,0.47017,87199.0,87180.0,0.67804937]
[1766124041604,0.07100962,87201.0,87180.0,0.67804937]
[1766124041605,0.47017,87197.0,87181.0,0.48922]
[1766124041804,0.57059,87196.0,87181.0,0.59204]
[1766124042123,0.57059,87196.0,87184.0,1.08126]
[1766124042318,0.00576,87198.0,87188.0,0.48922]
[1766124042527,0.00576,87198.0,87196.0,0.001099]
[1766124042786,0.00576,87198.0,87188.0,0.59240475]
[1766124042931,0.00576,87198.0,87189.0,0.48922]
[1766124043943,0.05954187,87201.0,87189.0,0.48922]
[1766124044149,0.00576,87200.0,87189.0,0.48922]
[1766124045869,0.00576,87200.0,87188.0,0.00036475]
[1766124045870,1.04076,87197.0,87188.0,0.00036475]
[1766124046235,0.47017,87197.0,87188.0,0.00036475]
[1766124047154,1.04076,87197.0,87188.0,0.00036475]
[1766124047619,1.04076,87196.0,87188.0,0.00036475]
[1766124047845,0.57059,87194.0,87188.0,0.00036475]
[1766124048025,0.00576,87193.0,87188.0,4.75e-06]
[1766124048225,0.57059,87191.0,87188.0,4.75e-06]
[1766124050538,1.04076,87191.0,87188.0,4.75e-06]
[1766124051374,0.00576,87193.0,87188.0,4.75e-06]
[1766124051571,1.04076,87192.0,87188.0,4.75e-06]
[1766124051774,0.57059,87191.0,87188.0,4.75e-06]
[1766124053003,1.04076,87191.0,87188.0,4.75e-06]
[1766124053414,1.04076,87189.0,87188.0,4.75e-06]
[1766124055597,0.469071,87189.0,87188.0,4.75e-06]
[1766124056202,0.01146788,87200.0,87190.0,0.48922]
[1766124056203,0.04592,87200.0,87190.0,0.48922]
[1766124056418,0.00576,87199.0,87194.0,0.48922]
[1766124058028,0.00576,87199.0,87188.0,1.08126475]
[1766124058363,0.00576,87199.0,87189.0,0.48922]
[1766124059635,0.01799371,87201.0,87189.0,0.48922]
[1766124059887,0.00576,87200.0,87189.0,0.48922]
[1766124062596,0.00576,87200.0,87190.0,0.48922]
[1766124063065,0.57635,87200.0,87190.0,0.48922]
[1766124063273,0.57059,87196.0,87188.0,4.75e-06]
[1766124063483,0.57059,87189.0,87188.0,4.75e-06]
[1766124063688,0.57635,87189.0,87188.0,4.75e-06]
[1766124063896,0.00576,87189.0,87188.0,4.75e-06]
[1766124070868,0.55897,87197.0,87188.0,4.75e-06]
[1766124071030,0.00576,87196.0,87188.0,4.75e-06]
[1766124071428,1.03236,87195.0,87188.0,4.75e-06]
[1766124071629,0.47339,87195.0,87188.0,4.75e-06]
[1766124072813,0.55897,87194.0,87188.0,4.75e-06]
[1766124073273,0.47339,87189.0,87188.0,4.75e-06]
[1766124073464,0.47915,87189.0,87188.0,4.75e-06]
[1766124073818,0.47915,87189.0,87175.0,7.3e-06]
[1766124073819,0.22942094,87176.0,87175.0,7.3e-06]
[1766124074063,0.55897,87171.0,87168.0,7.3e-06]
[1766124074266,0.00576,87170.0,87164.0,0.0004]
[1766124074475,0.01147196,87169.0,87163.0,0.0004]
[1766124074793,0.55897,87169.0,87163.0,0.0004]
[1766124074949,0.57044196,87169.0,87156.0,0.49623]
[1766124075149,0.01147209,87168.0,87156.0,0.49623]
[1766124075684,0.57044196,87169.0,87150.0,0.68380937]
[1766124075685,0.55897,87165.0,87150.0,0.68380937]
[1766124075889,0.00576,87164.0,87150.0,0.68380937]
[1766124076189,0.00576,87164.0,87155.0,0.54392]
[1766124076445,0.00576,87164.0,87153.0,0.49623]
[1766124077782,0.00576,87164.0,87154.0,0.49663]
[1766124078024,0.07101502,87160.0,87154.0,0.0004]
[1766124078222,0.01147354,87157.0,87154.0,0.000101]
[1766124078449,0.01147354,87157.0,87144.0,0.54432]
[1766124078450,1.03236,87154.0,87144.0,0.0004]
[1766124078770,0.47339,87154.0,87144.0,0.0004]
[1766124079179,0.47339,87155.0,87144.0,0.0004]
[1766124079448,0.55897,87154.0,87144.0,0.0004]
[1766124079886,0.47339,87155.0,87144.0,0.0004]
[1766124080026,0.00576,87156.0,87154.0,0.001099]
[1766124080457,0.00576,87156.0,87146.0,0.49623]
[1766124081458,0.00576,87155.0,87146.0,0.49623]
[1766124084813,0.00576,87155.0,87154.0,0.00066078]
[1766124086149,0.01147302,87161.0,87154.0,0.00066078]
[1766124086355,1.03236,87159.0,87146.0,0.49623]
[1766124086568,0.47339,87159.0,87149.0,0.67916885]
[1766124086742,0.00576,87160.0,87150.0,0.01376936]
[1766124086929,0.00576,87160.0,87150.0,0.50999936]
[1766124087102,0.00576,87160.0,87150.0,0.49623]
[1766124087297,0.55897,87163.0,87150.0,0.49623]
[1766124087499,0.00576,87162.0,87150.0,0.49623]
[1766124088330,0.00576,87162.0,87150.0,1.17539885]
[1766124088534,0.00576,87162.0,87151.0,0.54392]
[1766124088755,0.00576,87162.0,87152.0,0.49623]
[1766124088988,0.56473,87162.0,87152.0,0.49623]
[1766124089189,0.55897,87160.0,87146.0,0.54392]
[1766124089544,0.55897,87160.0,87148.0,0.49623]
[1766124089725,1.03236,87160.0,87148.0,0.49623]
[1766124090909,0.55897,87159.0,87148.0,0.49623]
[1766124091131,1.03236,87158.0,87148.0,0.49623]
[1766124091337,0.55897,87157.0,87144.0,0.0004]
[1766124091531,1.03236,87154.0,87144.0,0.0004]
[1766124091755,0.55897,87153.0,87144.0,0.0004]
[1766124092102,0.47339,87154.0,87152.0,0.00072372]
[1766124092303,0.47339,87154.0,87144.0,0.0004]
[1766124092539,0.47339,87154.0,87153.0,0.00069225]
[1766124095444,1.03236,87154.0,87153.0,2.25e-06]
[1766124095603,1.26183885,87154.0,87153.0,2.25e-06]
[1766124095947,0.99158,87145.0,87144.0,2.25e-06]
[1766124096144,1.00305525,87144.0,87137.0,2.25e-06]
[1766124096321,0.52819,87142.0,87137.0,0.00011179]
[1766124098245,0.46339,87143.0,87136.0,1.79e-06]
[1766124098246,0.46339,87137.0,87136.0,1.79e-06]
[1766124098394,0.99734,87137.0,87136.0,1.79e-06]
[1766124098996,0.46915,87137.0,87136.0,1.79e-06]
[1766124099704,0.99734,87137.0,87136.0,1.79e-06]
[1766124102096,0.996241,87137.0,87136.0,1.79e-06]
[1766124102288,0.00576,87137.0,87136.0,1.79e-06]
[1766124102489,0.00576,87137.0,87136.0,0.00053703]
[1766124103454,0.52819,87136.0,87126.0,0.0004]
[1766124105590,0.00576,87137.0,87130.0,0.0114771]
[1766124105908,0.67916885,87150.0,87126.0,0.48853]
[1766124105909,0.99158,87156.0,87138.0,0.01147604]
[1766124106112,0.99158,87156.0,87136.0,0.01147631]
[1766124106113,0.05172,87155.0,87142.0,0.48813]
[1766124106813,0.99168928,87156.0,87141.0,0.56466]
[1766124106814,0.00576,87154.0,87145.0,0.48813]
[1766124107010,0.00576,87153.0,87145.0,0.48813]
[1766124108313,0.00576,87153.0,87140.0,0.67916885]
[1766124108497,0.00576,87153.0,87139.0,1.06426591]
[1766124108696,0.00576,87153.0,87141.0,0.56466]
[1766124108890,0.00576,87153.0,87142.0,0.48813]
[1766124109566,0.00576,87153.0,87143.0,1.05279]
[1766124109684,0.00576,87153.0,87144.0,0.48813]
[1766124110535,0.52819,87154.0,87140.0,0.67916885]
[1766124110714,0.00576,87152.0,87142.0,0.48813]
[1766124111252,0.001099,87142.0,87130.0,0.69064595]
[1766124111454,0.001099,87142.0,87131.0,0.58189697]
[1766124111669,0.46915,87143.0,87133.0,0.48813]
[1766124111670,0.00576,87143.0,87133.0,0.48813]
[1766124111867,0.00576,87143.0,87134.0,0.48813]
[1766124112161,0.00576,87143.0,87136.0,0.48813]
[1766124112359,0.00576,87143.0,87132.0,0.48813]
[1766124113855,0.00576,87143.0,87130.0,0.67916885]
[1766124114185,0.00576,87143.0,87132.0,0.48813]
[1766124114955,0.99734,87143.0,87132.0,0.48813]
[1766124115174,0.00576,87143.0,87128.0,0.00025199]
[1766124115492,0.99158,87141.0,87128.0,0.00025199]
[1766124116867,0.99158,87141.0,87129.0,0.48813]
[1766124117165,0.00576,87143.0,87131.0,0.48813]
[1766124118186,0.99734,87143.0,87131.0,0.48813]
[1766124118634,0.00576,87142.0,87135.0,0.48813]
[1766124118838,0.52819,87149.0,87135.0,1.05279]
[1766124119127,0.04596,87146.0,87136.0,0.01377157]
[1766124119319,0.04596,87146.0,87135.0,1.05279]
[1766124119619,0.46339,87149.0,87135.0,1.05279]
[1766124119784,0.00576,87145.0,87136.0,0.01377157]
[1766124119970,0.00576,87144.0,87136.0,0.01377157]
[1766124120809,0.01147394,87154.0,87136.0,0.01377157]
[1766124120810,0.00576,87143.0,87138.0,1.05279]
[1766124121008,0.52819,87151.0,87138.0,0.56466]
[1766124121209,0.00576,87150.0,87138.0,0.56466]
[1766124121387,0.52819,87151.0,87140.0,0.67916885]
[1766124121594,0.00576,87150.0,87141.0,0.48813]
[1766124121796,0.00576,87150.0,87140.0,1.16729885]
[1766124121992,0.46339,87155.0,87140.0,0.48813]
[1766124122195,0.46339,87153.0,87140.0,0.48813]
[1766124122621,0.99158,87153.0,87140.0,0.48813]
[1766124122997,0.00576,87152.0,87140.0,0.48813]
[1766124123496,0.99158,87153.0,87140.0,0.48813]
[1766124123833,0.00576,87152.0,87140.0,0.48813]
[1766124124445,0.46092,87149.0,87133.0,0.49803]
[1766124124593,0.46092,87149.0,87136.0,0.49803]
[1766124124998,0.46092,87149.0,87137.0,0.49803]
[1766124126951,0.00576,87148.0,87140.0,0.52437]
[1766124127218,0.00576,87147.0,87142.0,0.52437]
[1766124127487,0.00576,87146.0,87143.0,0.49929]
[1766124127687,0.98997,87155.0,87143.0,0.49929]
[1766124127898,0.00010928,87156.0,87143.0,0.49929]
[1766124127899,0.99573,87154.0,87143.0,0.49929]
[1766124128092,0.50996,87153.0,87143.0,0.49929]
[1766124128461,0.98997,87153.0,87143.0,0.49929]
[1766124128644,0.50996,87152.0,87138.0,1.02366]
[1766124129284,0.00576,87151.0,87138.0,1.02366]
[1766124130159,0.05954187,87149.0,87138.0,1.02366]
[1766124130547,0.56950187,87149.0,87138.0,0.49929]
[1766124131013,0.56950187,87149.0,87130.0,0.69064595]
[1766124131014,0.00576,87151.0,87140.0,0.22951572]
[1766124131225,0.00576,87150.0,87147.0,0.49929]
[1766124131515,0.04596,87158.0,87147.0,0.47285002]
[1766124131516,0.00576,87149.0,87147.0,0.47285002]
[1766124132770,0.00576,87148.0,87147.0,0.47285002]
[1766124134390,0.00576,87148.0,87147.0,0.47175102]
[1766124136651,0.00576,87148.0,87142.0,0.52437]
[1766124136951,0.00576,87148.0,87141.0,0.49929]
[1766124138239,0.00576,87147.0,87141.0,0.49929]
[1766124142148,0.00576,87147.0,87142.0,0.49929]
[1766124142482,0.00576,87147.0,87144.0,1.02366]
[1766124144323,0.004661,87147.0,87144.0,1.02366]
[1766124144530,0.004661,87147.0,87145.0,0.49929]
[1766124145085,1e-06,87147.0,87145.0,0.49929]
[1766124145873,1e-06,87147.0,87145.0,0.49158412]
[1766124146538,3.54e-06,87155.0,87146.0,0.52437]
[1766124146694,0.00576,87156.0,87149.0,0.52437]
[1766124146896,0.00576,87156.0,87148.0,0.01147473]
[1766124146897,0.001099,87149.0,87134.0,0.01147657]
[1766124147103,0.001099,87149.0,87139.0,0.53584591]
[1766124147300,0.00576,87155.0,87139.0,0.52437]
[1766124147502,0.00576,87155.0,87138.0,0.01147604]
[1766124147503,0.00576,87155.0,87141.0,0.52437]
[1766124147709,0.00576,87155.0,87141.0,0.53584565]
[1766124147974,0.00576,87155.0,87144.0,0.52437]
[1766124148109,0.00576,87155.0,87145.0,0.49929]
[1766124148312,0.00576,87155.0,87146.0,0.49929]
[1766124152987,0.48577,87155.0,87142.0,0.52437]
[1766124153199,0.48577,87155.0,87144.0,0.49929]
[1766124155294,0.48577,87155.0,87145.0,0.49929]
[1766124156240,0.00576,87155.0,87147.0,0.45733]
[1766124158163,0.01147262,87164.0,87137.0,0.23528262]
[1766124158164,0.01800278,87175.0,87154.0,0.45733]
[1766124158366,0.01722946,87188.0,87165.0,0.67925977]
[1766124158677,0.01146999,87184.0,87157.0,0.77248186]
[1766124158861,0.01147012,87183.0,87161.0,0.01147302]
[1766124159061,0.01147038,87181.0,87160.0,0.45733]
[1766124159267,0.00576,87180.0,87161.0,0.53154]
[1766124159607,0.00581449,87180.0,87163.0,0.53154]
[1766124159803,0.00581449,87180.0,87164.0,0.53154]
[1766124160262,5.449e-05,87180.0,87175.0,0.53154]
[1766124160437,0.04596,87193.0,87180.0,0.54410503]
[1766124160639,0.00576,87192.0,87181.0,0.52002]
[1766124160965,0.00036524,87193.0,87182.0,0.0137643]
[1766124161109,0.00036524,87193.0,87182.0,0.02523455]
[1766124161309,0.00576,87194.0,87183.0,0.01147012]
[1766124161641,0.00576,87193.0,87184.0,0.02523398]
[1766124161842,0.00576,87193.0,87183.0,0.00036524]
[1766124162045,0.01799541,87203.0,87183.0,0.45769524]
[1766124162249,0.00576,87202.0,87186.0,0.01146973]
[1766124162571,0.00576,87202.0,87191.0,0.01146907]
[1766124162768,0.00576,87202.0,87192.0,0.53154]
[1766124164869,0.01799541,87203.0,87193.0,0.46879881]
[1766124165065,0.49532,87215.0,87203.0,0.001045]
[1766124165429,0.00576,87216.0,87208.0,0.01146683]
[1766124165556,0.00576,87216.0,87208.0,0.53154]
[1766124165777,0.00576,87216.0,87211.0,0.53154]
[1766124166801,0.54128,87227.0,87211.0,0.53154]
[1766124166980,0.00010953,87216.0,87211.0,0.53154]
[1766124171573,0.00010953,87216.0,87206.0,0.00576]
[1766124171737,0.49532,87213.0,87191.0,0.50325]
[1766124171934,0.50108,87212.0,87196.0,0.45733]
[1766124172137,0.50678683,87208.0,87196.0,0.45733]
[1766124172361,0.01146762,87202.0,87188.0,0.45733]
[1766124172563,0.01146762,87202.0,87185.0,0.03446625]
[1766124172564,0.99234,87199.0,87185.0,0.03446625]
[1766124173268,0.49532,87199.0,87186.0,0.45733]
[1766124173681,0.49532,87199.0,87187.0,0.53154]
[1766124173959,0.49532,87199.0,87188.0,0.53154]
[1766124175125,0.00576,87201.0,87188.0,0.53154]
[1766124175256,0.00576,87201.0,87185.0,0.01146986]
[1766124175257,0.00576,87201.0,87189.0,0.98887]
[1766124175663,0.00576,87201.0,87189.0,0.45733]
[1766124175862,0.00576,87201.0,87190.0,0.53154]
[1766124177379,0.49532,87197.0,87185.0,0.00576]
[1766124177876,0.50678828,87197.0,87181.0,0.45733]
[1766124178090,0.50678894,87192.0,87181.0,0.45733]
[1766124178320,0.00576,87191.0,87181.0,0.45733]
[1766124178531,0.01722907,87191.0,87181.0,0.45733]
[1766124178733,0.01722907,87191.0,87178.0,0.00576]
[1766124178734,0.49532,87190.0,87178.0,0.00576]
[1766124179879,0.49532,87190.0,87177.0,0.53154]
[1766124180082,0.49532,87190.0,87178.0,0.53154]
[1766124180809,0.00576,87191.0,87179.0,0.53154]
[1766124181029,0.00576,87191.0,87181.0,0.53154]
[1766124181320,0.004661,87191.0,87185.0,0.53154]
[1766124181536,0.004661,87191.0,87184.0,0.45733]
[1766124182666,0.004661,87191.0,87184.0,0.98887]
[1766124185003,0.00010953,87216.0,87190.0,0.28946]
[1766124185202,0.01146618,87213.0,87199.0,0.28946]
[1766124185383,0.47117631,87212.0,87200.0,0.50611]
[1766124185549,0.001099,87199.0,87192.0,0.50611]
[1766124185748,0.00576,87207.0,87192.0,0.50611]
[1766124186191,0.46791,87207.0,87192.0,0.50611]
[1766124186395,0.46215,87206.0,87192.0,0.51757894]
[1766124186598,0.00576,87207.0,87194.0,0.28946]
[1766124186927,0.00576,87207.0,87196.0,0.53276841]
[1766124187068,0.00576,87207.0,87196.0,0.5213]
[1766124187524,0.00576,87207.0,87197.0,0.5213]
[1766124187857,0.00576,87207.0,87198.0,0.5213]
[1766124195760,0.46215,87197.0,87183.0,0.5213]
[1766124195963,0.46215,87195.0,87183.0,0.5213]
[1766124196401,0.00576,87196.0,87184.0,0.28946]
[1766124196570,0.00576,87196.0,87187.0,0.5213]
[1766124196750,0.00576,87195.0,87190.0,0.5213]
[1766124196948,0.00576,87195.0,87194.0,0.5213]
[1766124197492,0.46215,87209.0,87193.0,0.27794]
[1766124197493,0.46215,87209.0,87196.0,0.27794]
[1766124197726,0.00576,87208.0,87200.0,0.27794]
[1766124197895,0.00576,87208.0,87202.0,0.5213]
[1766124198127,0.46225953,87216.0,87202.0,0.5213]
[1766124198257,0.00576,87215.0,87203.0,0.53506099]
[1766124198462,0.00576,87215.0,87203.0,0.5213]
[1766124198643,0.00576,87215.0,87202.0,0.01146762]
[1766124198848,0.00576,87215.0,87203.0,0.5213]
[1766124199094,0.00576,87215.0,87204.0,0.5213]
[1766124199455,0.00576,87215.0,87191.0,0.03446447]
[1766124199456,0.49601,87197.0,87191.0,0.03446447]
[1766124199645,0.49601,87197.0,87180.0,0.5213]
[1766124199646,0.50177,87196.0,87182.0,0.52706]
[1766124200188,0.50177,87196.0,87185.0,0.01146986]
[1766124200189,0.00576,87196.0,87185.0,0.01146986]
[1766124200424,0.00576,87196.0,87186.0,0.5213]
[1766124201384,0.00576,87196.0,87189.0,0.01146933]
[1766124201591,0.00576,87196.0,87190.0,0.5213]
[1766124201777,0.00576,87195.0,87190.0,0.5213]
[1766124201968,0.46215,87206.0,87191.0,0.5213]
[1766124201969,0.00576,87197.0,87191.0,0.5213]
[1766124202193,0.46215,87206.0,87194.0,0.5213]
[1766124202315,0.00576,87205.0,87195.0,0.5213]
[1766124202974,0.01146618,87213.0,87197.0,0.5213]
[1766124203300,0.01146618,87213.0,87198.0,0.5213]
[1766124203301,0.01146644,87211.0,87198.0,0.5213]
[1766124204034,0.01722631,87212.0,87198.0,0.5213]
[1766124204377,0.47937631,87212.0,87198.0,0.5213]
[1766124204573,0.01146644,87211.0,87198.0,0.5213]
[1766124204940,0.47937631,87212.0,87198.0,0.5213]
[1766124205362,0.01146644,87211.0,87198.0,0.5213]
[1766124206160,0.47937631,87212.0,87198.0,0.5213]
[1766124208575,0.46791,87212.0,87198.0,0.46908516]
[1766124208901,0.46791,87212.0,87198.0,0.24914]
[1766124209108,0.00576,87212.0,87201.0,0.24914]
[1766124210375,0.50817953,87216.0,87202.0,0.01146762]
[1766124210376,0.00576,87211.0,87202.0,0.01146762]
[1766124210577,0.00576,87211.0,87206.0,0.5213]
[1766124210933,0.00576,87211.0,87189.0,0.22938645]
[1766124210934,0.001099,87206.0,87191.0,0.24338]
[1766124211135,0.001099,87206.0,87197.0,0.53276828]
[1766124211488,0.00576,87211.0,87200.0,0.5213]
[1766124212089,0.00576,87211.0,87200.0,0.67840422]
[1766124212315,0.00576,87211.0,87201.0,0.5213]
[1766124214983,0.00576,87210.0,87201.0,0.5213]
[1766124219276,0.48981394,87230.0,87210.0,0.5479]
[1766124219478,0.50888888,87229.0,87214.0,0.5479]
[1766124219690,0.99891,87229.0,87214.0,0.54800953]
[1766124219889,0.47835,87228.0,87214.0,0.54800953]
[1766124220106,0.47835,87228.0,87215.0,0.5479]
[1766124220310,0.00576,87229.0,87218.0,0.78541]
[1766124220930,0.00576,87229.0,87214.0,0.00010953]
[1766124220931,0.48411,87229.0,87214.0,0.00010953]
[1766124221231,0.47835,87227.0,87214.0,0.00010953]
[1766124221438,0.47835,87227.0,87214.0,0.54800953]
[1766124222932,0.47835,87227.0,87215.0,0.5479]
[1766124224833,0.48411,87229.0,87215.0,0.23751]
[1766124225036,0.00576,87229.0,87215.0,0.23751]
[1766124225219,0.47835,87227.0,87215.0,0.23751]
[1766124229244,0.47835,87227.0,87215.0,0.78541]
[1766124230957,0.47835,87227.0,87216.0,0.5479]
[1766124231755,0.48411,87226.0,87216.0,0.5479]
[1766124231954,0.48411,87226.0,87215.0,0.23751]
[1766124232169,0.47835,87225.0,87214.0,0.00010953]
[1766124232586,0.5148,87225.0,87214.0,0.00010953]
[1766124232765,0.47835,87224.0,87214.0,0.00010953]
[1766124232980,0.478459,87214.0,87200.0,0.67840422]
[1766124233181,0.47835,87213.0,87201.0,0.00576]
[1766124235639,0.47835,87213.0,87201.0,0.55366]
[1766124235918,0.47835,87213.0,87201.0,0.5479]
[1766124237272,0.5148,87211.0,87194.0,0.5479]
[1766124237473,0.5148,87211.0,87184.0,0.2293998]
[1766124237474,0.99315,87191.0,87189.0,3.72e-06]
[1766124237730,0.00576,87190.0,87189.0,3.72e-06]
[1766124238045,0.00576,87190.0,87180.0,0.67840422]
[1766124238609,0.00576,87190.0,87181.0,0.5479]
[1766124239120,0.00576,87190.0,87180.0,0.67840422]
[1766124239121,0.00576,87190.0,87183.0,0.5479]
[1766124239286,0.01146762,87202.0,87183.0,0.5479]
[1766124239287,0.00576,87192.0,87187.0,0.5479]
[1766124239487,0.47835,87208.0,87191.0,0.2548]
[1766124239488,0.00576,87196.0,87191.0,0.2548]
[1766124239694,0.04592,87204.0,87194.0,0.5479]
[1766124239839,0.47835,87208.0,87197.0,0.5479]
[1766124240054,0.24077918,87217.0,87200.0,0.5479]
[1766124240055,0.00576,87207.0,87200.0,0.5479]
[1766124240262,0.00576,87207.0,87201.0,0.5479]
[1766124240751,0.00576,87207.0,87203.0,0.5479]
[1766124241523,0.00576,87209.0,87205.0,0.5479]
[1766124241727,0.00576,87209.0,87205.0,0.54214]
[1766124241946,0.00576,87209.0,87205.0,0.53638]
[1766124242709,0.00010945,87214.0,87204.0,0.22763]
[1766124242928,0.00576,87213.0,87204.0,0.22763]
[1766124243579,0.00576,87213.0,87204.0,0.67840422]
[1766124243873,0.00576,87217.0,87211.0,0.51301]
[1766124244068,0.0058353,87217.0,87211.0,0.51301]
[1766124244954,0.0058353,87217.0,87210.0,0.21035]
[1766124245167,0.0058353,87217.0,87199.0,0.2293578]
[1766124245168,0.01146683,87208.0,87185.0,0.21035]
[1766124245511,0.01146788,87200.0,87185.0,0.21035]
[1766124245626,0.495,87199.0,87185.0,0.21035]
[1766124245831,0.50060815,87198.0,87185.0,0.21035]
[1766124246040,0.48914,87198.0,87185.0,0.21035]
[1766124246888,0.48914,87198.0,87185.0,0.71271]
[1766124248305,0.48914,87198.0,87186.0,0.50236]
[1766124248512,0.48914,87198.0,87187.0,0.50236]
[1766124248748,0.00576,87199.0,87187.0,0.50236]
[1766124248950,0.00576,87199.0,87182.0,0.01723025]
[1766124248951,0.00576,87199.0,87193.0,0.50236]
[1766124249106,0.00576,87207.0,87200.0,0.50236]
[1766124249342,0.00576,87207.0,87194.0,0.00576]
[1766124249544,0.50060736,87204.0,87191.0,0.50236]
[1766124249811,0.01146762,87202.0,87191.0,0.50812]
[1766124250007,0.4949,87201.0,87191.0,0.00576]
[1766124250335,0.97838,87200.0,87186.0,0.50236]
[1766124250609,0.97838,87200.0,87186.0,0.50812]
[1766124250821,0.48914,87200.0,87186.0,0.50812]
[1766124250962,0.48914,87200.0,87187.0,0.50236]
[1766124253443,0.48914,87200.0,87188.0,0.50236]
[1766124253745,0.48914,87200.0,87186.0,0.00576]
[1766124253746,0.00576,87201.0,87191.0,0.50236]
[1766124259757,0.27524675,87212.0,87188.0,0.00576]
[1766124259955,0.00576,87207.0,87188.0,0.00576]
[1766124260209,0.01146723,87205.0,87189.0,0.70119]
[1766124260407,0.01146723,87205.0,87190.0,0.50236]
[1766124260643,0.50060723,87205.0,87190.0,0.50236]
[1766124260842,0.01146749,87203.0,87190.0,0.50236]
[1766124261002,0.01146736,87204.0,87190.0,0.50236]
[1766124261628,0.48914,87205.0,87192.0,0.50236]
[1766124261924,0.48914,87205.0,87194.0,0.50236]
[1766124262125,0.00576,87207.0,87197.0,0.19883]
[1766124262323,0.00576,87207.0,87197.0,0.17579]